bitfinex/quotes_SOLUSD_20250806
["timestamp","ask_amount","ask_price","bid_price","bid_amount"]
[1754508312022,42.74,168.91,168.9,6.16337348]
[1754508312834,48.66031259,168.91,168.9,6.16337348]
[1754508314432,42.74,168.91,168.9,6.16337348]
[1754508314627,5.91997536,168.92,168.9,6.16337348]
[1754508314827,42.7,168.91,168.9,6.16337348]
[1754508315128,42.7,168.91,168.89,6.16337348]
[1754508315852,5.91958993,168.94,168.9,7.13769662]
[1754508316030,239.2,169.0,168.9,7.13769662]
[1754508316031,5.9186329,168.96,168.93,6.16337348]
[1754508316232,5.9186329,168.96,168.93,6.44769662]
[1754508316233,42.68,168.95,168.93,6.44769662]
[1754508317238,49.26899585,168.95,168.93,0.28432314]
[1754508319164,49.26899585,168.95,168.93,6.44769662]
[1754508319527,43.35,168.95,168.93,6.44769662]
[1754508320165,42.68,168.95,168.93,6.44769662]
[1754508320538,42.64,168.94,168.93,6.44769662]
[1754508321243,0.71,168.96,168.93,6.44769662]
[1754508321446,0.03,169.03,168.99,0.28432314]
[1754508321756,0.03,169.03,169.02,6.44769662]
[1754508321951,0.03,169.03,169.02,24.46391307]
[1754508322131,42.76,169.09,169.05,26.0]
[1754508322340,42.76,169.09,169.08,6.16337348]
[1754508322562,0.71,169.11,169.09,0.28432314]
[1754508322760,5.91302597,169.12,169.09,0.28432314]
[1754508322957,0.71,169.1,169.09,0.28432314]
[1754508323168,49.38366055,169.1,169.05,26.0]
[1754508323459,6.16337348,169.07,169.02,6.16337348]
[1754508323649,42.74,169.06,169.03,0.28432314]
[1754508323852,43.45,169.06,169.03,0.28432314]
[1754508324035,0.71,169.05,169.03,6.44769662]
[1754508324732,42.74,169.06,169.03,10.0937295]
[1754508324986,0.71,169.04,169.03,10.0937295]
[1754508325342,42.74,169.06,169.03,10.0937295]
[1754508325537,0.71,169.05,169.03,10.0937295]
[1754508327168,0.71,169.05,169.04,0.28432314]
[1754508329166,0.71,169.05,169.03,0.28432314]
[1754508329461,42.7,169.04,169.03,0.28432314]
[1754508330959,0.71,169.05,169.03,0.28432314]
[1754508331150,42.66,169.04,169.03,0.28432314]
[1754508331545,42.64,169.04,169.03,0.28432314]
[1754508333470,0.69,169.05,169.03,0.28432314]
[1754508333671,42.64,169.04,169.03,0.28432314]
[1754508334655,42.6,169.04,169.03,0.28432314]
[1754508335541,43.31,169.04,169.03,0.28432314]
[1754508336470,43.31,169.04,169.02,15.72585021]
[1754508336471,0.71,169.04,169.02,0.28432314]
[1754508336647,0.71,169.03,169.02,0.28432314]
[1754508336853,0.71,169.03,168.99,25.82053362]
[1754508337072,9.80940636,169.02,168.97,9.80940636]
[1754508337367,43.27,169.01,168.97,9.80940636]
[1754508337667,0.71,169.0,168.97,9.80940636]
[1754508337972,42.56,169.01,168.98,0.28432314]
[1754508337973,0.71,168.99,168.98,0.28432314]
[1754508338355,0.71,168.99,168.98,0.14216157]
[1754508338743,0.71,168.99,168.97,15.72760205]
[1754508338940,42.58,168.98,168.97,16.01192519]
[1754508339244,42.56,169.01,168.98,0.28432314]
[1754508339443,42.56,169.01,169.0,10.0937295]
[1754508340283,42.58,169.02,169.01,0.28432314]
[1754508340478,42.58,169.02,169.01,10.0937295]
[1754508341154,0.71,169.03,169.01,10.0937295]
[1754508341443,42.56,169.02,169.01,16.01050214]
[1754508342047,0.03,169.04,169.01,16.70050214]
[1754508342273,0.03,169.04,169.03,10.0937295]
[1754508342880,0.03,169.04,169.03,0.28432314]
[1754508343053,0.74,169.04,169.03,0.28432314]
[1754508351400,0.03,169.04,169.03,16.00983906]
[1754508351573,5.9105994,169.19,169.05,41.39053871]
[1754508351886,43.2,169.18,169.12,0.28432314]
[1754508352185,43.2,169.18,169.12,0.97432314]
[1754508352694,43.2,169.18,169.15,6.12215436]
[1754508352868,42.5,169.17,169.15,6.12215436]
[1754508353259,42.5,169.17,169.15,0.28432314]
[1754508353260,43.22,169.17,169.15,0.28432314]
[1754508353667,42.5,169.16,169.15,0.28432314]
[1754508353867,42.5,169.16,169.15,6.4064775]
[1754508354086,0.72,169.19,169.15,6.4064775]
[1754508354383,42.48,169.17,169.15,0.28432314]
[1754508354587,0.72,169.16,169.15,0.28432314]
[1754508356974,42.44,169.16,169.15,6.19623564]
[1754508357201,0.72,169.18,169.15,6.19623564]
[1754508357383,42.44,169.16,169.15,0.28432314]
[1754508358904,43.16,169.16,169.15,0.28432314]
[1754508359692,43.16,169.16,169.15,6.19623564]
[1754508360000,42.44,169.16,169.15,6.19623564]
[1754508360399,43.16,169.16,169.15,6.19623564]
[1754508360997,0.72,169.16,169.15,0.28432314]
[1754508362886,43.1,169.18,169.15,6.19623564]
[1754508363086,0.72,169.17,169.15,6.19623564]
[1754508363714,0.72,169.16,169.15,0.28432314]
[1754508364088,0.72,169.16,169.15,6.19623564]
[1754508364491,0.72,169.16,169.14,9.79718467]
[1754508364703,0.72,169.15,169.14,10.08150781]
[1754508365223,0.72,169.15,169.14,15.99376984]
[1754508365405,0.72,169.15,169.14,6.19658517]
[1754508366115,43.02,169.15,169.14,6.19658517]
[1754508366688,43.02,169.15,169.14,0.28432314]
[1754508367707,43.02,169.15,169.11,14.78304725]
[1754508367708,43.02,169.15,169.12,5.91292472]
[1754508367908,0.72,169.14,169.12,5.91292472]
[1754508368214,0.72,169.13,169.12,0.28432314]
[1754508369407,0.72,169.13,169.11,15.7103639]
[1754508369597,42.98,169.12,169.11,6.19750237]
[1754508371402,42.26,169.12,169.11,6.19750237]
[1754508372207,15.13621557,169.18,169.12,0.28432314]
[1754508372408,42.96,169.17,169.14,9.79718467]
[1754508373310,42.96,169.17,169.14,5.91206201]
[1754508373501,0.72,169.16,169.14,5.91206201]
[1754508376823,42.22,169.15,169.14,6.19638515]
[1754508377026,0.72,169.16,169.14,6.19638515]
[1754508377226,42.2,169.15,169.14,6.19638515]
[1754508377401,42.92,169.15,169.14,6.19638515]
[1754508379106,42.9,169.15,169.14,6.19638515]
[1754508379304,0.72,169.15,169.14,6.19638515]
[1754508379544,42.18,169.17,169.15,0.28432314]
[1754508379913,42.88,169.17,169.15,0.28432314]
[1754508380425,0.7,169.16,169.15,0.28432314]
[1754508380809,42.18,169.17,169.15,0.28432314]
[1754508381233,0.7,169.16,169.15,0.28432314]
[1754508381530,0.03,169.18,169.17,32.19553671]
[1754508381531,1e-08,169.18,169.17,32.19553671]
[1754508381728,6.123541,169.26,169.18,0.28432314]
[1754508381932,42.28,169.27,169.25,0.28432314]
[1754508382444,0.7,169.28,169.25,6.40786413]
[1754508382445,42.98,169.28,169.25,6.40786413]
[1754508383606,0.7,169.27,169.21,43.755157]
[1754508383808,6.82354099,169.27,169.22,6.40786413]
[1754508384120,0.7,169.26,169.22,12.31721866]
[1754508384318,0.7,169.25,169.22,12.31721866]
[1754508384718,0.7,169.24,169.22,0.28432314]
[1754508384920,0.7,169.23,169.22,0.28432314]
[1754508385117,49.08354099,169.25,169.22,0.28432314]
[1754508385325,0.7,169.24,169.22,0.28432314]
[1754508386131,0.7,169.23,169.21,0.28432314]
[1754508386640,42.96,169.25,169.21,10.07327738]
[1754508386834,0.7,169.24,169.21,10.07327738]
[1754508387512,0.7,169.24,169.22,5.90946696]
[1754508388442,0.7,169.24,169.21,15.98298034]
[1754508393747,0.7,169.23,169.21,6.1940261]
[1754508394749,52.04895424,169.25,169.21,6.1940261]
[1754508395055,0.7,169.24,169.21,6.1940261]
[1754508395959,0.7,169.24,169.21,15.98298034]
[1754508398458,52.04895424,169.25,169.21,15.98298034]
[1754508398753,0.7,169.23,169.2,0.28432314]
[1754508398923,51.88895424,169.22,169.16,5.91156301]
[1754508399127,10.48895424,169.21,169.16,16.38051725]
[1754508399326,0.7,169.2,169.16,15.70051725]
[1754508399552,0.7,169.19,169.16,15.70051725]
[1754508399857,0.7,169.18,169.15,5.91187816]
[1754508400063,0.7,169.18,169.16,0.28432314]
[1754508400362,0.7,169.18,169.15,5.91187816]
[1754508400565,0.7,169.18,169.16,0.28432314]
[1754508402244,0.7,169.17,169.11,0.68]
[1754508402468,26.0,169.21,169.11,10.46895424]
[1754508402469,26.7,169.21,169.11,10.46895424]
[1754508402757,15.10621557,169.18,169.13,15.70156584]
[1754508402944,0.7,169.17,169.13,9.78895424]
[1754508403143,42.1,169.17,169.13,9.78895424]
[1754508403464,42.8,169.16,169.13,9.78895424]
[1754508404233,0.7,169.15,169.13,0.28432314]
[1754508404754,42.8,169.15,169.13,0.28432314]
[1754508405148,0.7,169.15,169.13,0.28432314]
[1754508405353,0.7,169.14,169.1,26.68]
[1754508405656,0.7,169.13,169.1,41.70250075]
[1754508405859,0.7,169.13,169.11,0.14216157]
[1754508406157,0.7,169.13,169.11,0.28432314]
[1754508406494,42.08,169.13,169.11,0.28432314]
[1754508407353,42.08,169.13,169.11,12.32300978]
[1754508408179,42.08,169.14,169.13,0.28432314]
[1754508408389,42.08,169.14,169.13,6.40980531]
[1754508409260,42.08,169.14,169.13,12.32241691]
[1754508410971,42.08,169.14,169.13,12.98241691]
[1754508411173,0.7,169.17,169.13,12.98241691]
[1754508411375,0.03,169.28,169.2,0.28432314]
[1754508411579,0.74,169.28,169.23,6.40980531]
[1754508411781,0.03,169.28,169.23,7.06980531]
[1754508412564,0.74,169.28,169.23,12.97892307]
[1754508412779,0.71,169.27,169.23,12.31892307]
[1754508412971,6.15548217,169.26,169.23,0.28432314]
[1754508413170,0.74,169.24,169.21,0.28432314]
[1754508413369,0.03,169.24,169.21,0.28432314]
[1754508413583,0.71,169.23,169.21,0.28432314]
[1754508413797,0.71,169.23,169.21,6.40980531]
[1754508414295,0.71,169.23,169.22,6.1937901]
[1754508414608,0.03,169.24,169.22,6.1937901]
[1754508415401,0.74,169.24,169.22,6.1937901]
[1754508415606,0.74,169.24,169.22,12.31927227]
[1754508415899,0.71,169.23,169.21,5.90970389]
[1754508416098,0.03,169.24,169.21,5.90970389]
[1754508416270,0.71,169.22,169.21,6.19402703]
[1754508418601,0.74,169.24,169.21,6.19402703]
[1754508418996,0.71,169.23,169.21,6.19402703]
[1754508420299,0.03,169.24,169.21,6.19402703]
[1754508420678,0.71,169.23,169.21,6.19402703]
[1754508424107,0.03,169.24,169.22,6.40980531]
[1754508424274,0.03,169.24,169.22,7.06980531]
[1754508425611,0.03,169.24,169.23,6.1934409]
[1754508427599,0.03,169.24,169.23,12.97892307]
[1754508428511,0.03,169.24,169.23,6.8534409]
[1754508428687,0.03,169.24,169.23,6.1934409]
[1754508431188,0.03,169.24,169.23,12.97892307]
[1754508431389,0.03,169.24,169.23,12.31892307]
[1754508432805,0.03,169.26,169.25,0.28432314]
[1754508432988,0.03,169.26,169.25,32.40980531]
[1754508433326,1e-08,169.26,169.25,32.40980531]
[1754508433507,0.03,169.28,169.26,0.28432314]
[1754508433694,0.03,169.28,169.27,6.40980531]
[1754508434700,0.03,169.28,169.27,12.3175267]
[1754508435494,0.03,169.28,169.27,12.9775267]
[1754508436090,0.03,169.28,169.27,30.7263807]
[1754508436727,0.03,169.28,169.27,12.3175267]
[1754508437629,0.03,169.28,169.27,6.19204453]
[1754508439818,6.84548217,169.28,169.25,5.90835036]
[1754508440117,0.69,169.27,169.26,0.28432314]
[1754508440703,6.81548217,169.27,169.26,0.28432314]
[1754508440909,6.81548217,169.27,169.21,0.66]
[1754508440910,6.81548217,169.27,169.19,0.66]
[1754508441113,6.81548217,169.27,169.17,6.57121357]
[1754508441114,0.69,169.26,169.17,6.57121357]
[1754508441422,0.69,169.26,169.21,6.12548217]
[1754508441600,0.03,169.28,169.25,6.12548217]
[1754508441914,6.12548217,169.27,169.25,0.28432314]
[1754508442100,6.81548217,169.26,169.25,0.28432314]
[1754508442287,6.81548217,169.26,169.25,0.14216157]
[1754508443120,49.07548217,169.26,169.25,0.14216157]
[1754508443946,42.95,169.26,169.25,6.19274263]
[1754508444118,0.69,169.26,169.25,6.19274263]
[1754508444449,42.95,169.26,169.25,6.19274263]
[1754508445920,0.69,169.26,169.25,6.19274263]
[1754508446117,42.22,169.26,169.25,6.19274263]
[1754508446321,0.72,169.28,169.25,6.19274263]
[1754508446322,42.22,169.27,169.26,0.28432314]
[1754508447952,42.22,169.27,169.26,6.19239356]
[1754508449755,49.03548217,169.27,169.26,0.28432314]
[1754508450233,42.91,169.27,169.26,0.28432314]
[1754508450751,42.22,169.27,169.26,6.19239356]
[1754508452241,42.91,169.27,169.26,6.19239356]
[1754508452443,42.87,169.27,169.26,6.19239356]
[1754508457165,42.18,169.27,169.26,6.19239356]
[1754508457782,42.87,169.27,169.26,6.19239356]
[1754508458648,42.81,169.27,169.26,6.19239356]
[1754508462847,0.03,169.28,169.26,6.85239356]
[1754508463041,0.03,169.28,169.27,6.40980531]
[1754508463278,0.03,169.28,169.27,12.9775267]
[1754508463669,0.03,169.28,169.27,6.19204453]
[1754508463670,42.8,169.28,169.27,6.19204453]
[1754508464874,42.11,169.28,169.27,6.19204453]
[1754508466897,42.78,169.28,169.27,6.19204453]
[1754508467794,42.76,169.28,169.27,6.19204453]
[1754508468167,0.72,169.28,169.27,6.19204453]
[1754508468383,42.74,169.28,169.27,6.19204453]
[1754508469374,0.72,169.28,169.27,6.19204453]
[1754508469693,42.74,169.28,169.27,6.19204453]
[1754508471393,0.03,169.3,169.28,0.28432314]
[1754508471598,0.03,169.3,169.29,7.06980531]
[1754508471782,0.03,169.3,169.29,0.28432314]
[1754508472492,6.85548217,169.3,169.29,0.28432314]
[1754508472875,6.85548217,169.3,169.28,0.28432314]
[1754508473077,48.14548217,169.29,169.27,5.90772139]
[1754508473286,0.7,169.28,169.27,6.19204453]
[1754508475495,0.7,169.28,169.27,0.28432314]
[1754508475673,6.82548217,169.28,169.27,0.28432314]
[1754508476286,6.82548217,169.28,169.27,6.19204453]
[1754508476775,0.7,169.28,169.27,6.19204453]
[1754508476974,6.82548217,169.28,169.27,6.19204453]
[1754508478784,0.7,169.28,169.27,6.19204453]
[1754508478992,6.82548217,169.28,169.27,6.19204453]
[1754508481104,0.7,169.28,169.27,6.19204453]
[1754508481308,41.96,169.28,169.27,6.19204453]
[1754508481879,48.08548217,169.28,169.27,6.19204453]
[1754508482079,48.78548217,169.28,169.27,6.19204453]
[1754508482684,48.76548217,169.28,169.27,6.19204453]
[1754508483781,48.06548217,169.28,169.27,6.19204453]
[1754508484302,48.76548217,169.28,169.27,6.19204453]
[1754508485306,48.76548217,169.28,169.27,0.28432314]
[1754508485491,48.72548217,169.28,169.27,6.19204453]
[1754508488714,48.70548217,169.28,169.27,6.19204453]
[1754508489708,6.82548217,169.28,169.27,6.19204453]
[1754508489914,48.70548217,169.28,169.27,6.19204453]
[1754508490092,48.70548217,169.28,169.27,0.28432314]
[1754508490793,6.82548217,169.28,169.27,0.28432314]
[1754508491108,48.68548217,169.28,169.27,0.28432314]
[1754508491893,48.66548217,169.28,169.27,0.28432314]
[1754508493085,0.03,169.3,169.27,6.85200981]
[1754508493290,41.84,169.29,169.28,0.94432314]
[1754508493796,41.84,169.29,169.28,0.28432314]
[1754508494314,41.84,169.29,169.28,6.19169554]
[1754508494709,6.12548217,169.29,169.28,6.19169554]
[1754508494883,48.64548217,169.29,169.28,6.19169554]
[1754508496934,41.82,169.29,169.28,6.19169554]
[1754508498096,41.8,169.29,169.28,6.19169554]
[1754508498295,48.62548217,169.29,169.28,6.19169554]
[1754508498994,6.82548217,169.29,169.28,6.19169554]
[1754508499223,48.62548217,169.29,169.28,6.19169554]
[1754508501229,6.82548217,169.29,169.28,0.28432314]
[1754508501393,48.58548217,169.29,169.28,0.28432314]
[1754508501592,0.03,169.3,169.28,7.06980531]
[1754508501900,0.03,169.3,169.29,7.06980531]
[1754508503228,0.03,169.3,169.29,12.97682876]
[1754508504508,0.03,169.3,169.29,6.19134659]
[1754508506328,41.79,169.3,169.29,6.19134659]
[1754508507731,41.79,169.3,169.29,0.28432314]
[1754508507921,48.62548217,169.3,169.28,5.90723556]
[1754508508127,6.12548217,169.29,169.28,5.90723556]
[1754508508332,6.83548217,169.29,169.28,6.04939713]
[1754508508532,6.83548217,169.29,169.28,0.14216157]
[1754508508844,15.10621557,169.28,169.27,0.06]
[1754508509141,5.90772139,169.27,169.26,0.06]
[1754508509314,12.74320356,169.27,169.26,0.06]
[1754508510045,6.83548217,169.27,169.26,0.06]
[1754508511342,48.63548217,169.27,169.26,0.06]
[1754508512221,6.83548217,169.27,169.26,0.06]
[1754508512422,48.61548217,169.27,169.26,0.06]
[1754508513636,6.83548217,169.27,169.26,0.06]
[1754508513831,54.52320356,169.27,169.26,0.06]
[1754508514059,48.61548217,169.27,169.26,0.06]
[1754508514425,6.83548217,169.27,169.26,0.06]
[1754508514625,48.59548217,169.27,169.26,0.06]
[1754508515442,48.57548217,169.27,169.26,0.06]
[1754508519841,54.48320356,169.27,169.26,0.06]
[1754508522662,48.57548217,169.27,169.26,0.06]
[1754508523439,145.93,169.29,169.26,0.06]
[1754508523750,145.93,169.29,169.26,0.74]
[1754508523751,41.68,169.28,169.26,0.74]
[1754508523930,41.68,169.28,169.27,0.68]
[1754508524779,41.68,169.28,169.27,6.58772139]
[1754508525653,0.03,169.29,169.27,5.90772139]
[1754508525864,41.72,169.28,169.27,6.19204453]
[1754508528653,42.43,169.28,169.27,6.19204453]
[1754508529771,41.72,169.28,169.27,6.19204453]
[1754508530471,48.54548217,169.28,169.26,0.06]
[1754508530678,21.93169774,169.27,169.26,0.06]
[1754508531557,0.7,169.27,169.26,0.06]
[1754508531769,47.84548217,169.27,169.26,0.06]
[1754508532274,48.54548217,169.27,169.26,0.06]
[1754508532668,47.84548217,169.27,169.26,0.06]
[1754508532851,41.72,169.27,169.26,0.06]
[1754508533053,47.84548217,169.27,169.26,0.06]
[1754508535447,41.72,169.27,169.26,0.06]
[1754508536172,42.42,169.27,169.26,0.06]
[1754508536973,48.54548217,169.27,169.26,0.06]
[1754508538481,63.65169774,169.27,169.26,0.06]
[1754508539796,69.55941913,169.27,169.26,0.06]
[1754508542600,73.53590071,169.27,169.26,0.06]
[1754508542801,47.23169774,169.26,169.25,0.06]
[1754508542997,51.90817932,169.26,169.25,0.06]
[1754508543183,57.81624974,169.26,169.25,0.06]
[1754508544100,57.81624974,169.26,169.16,0.06]
[1754508544101,31.81624974,169.26,169.16,0.06]
[1754508544284,6.12548217,169.17,169.16,0.06]
[1754508544492,47.82548217,169.17,169.16,0.06]
[1754508544780,41.7,169.17,169.16,0.06]
[1754508545174,41.7,169.17,169.16,0.20216157]
[1754508545478,41.7,169.17,169.16,0.06]
[1754508545479,47.82548217,169.17,169.16,0.06]
[1754508545803,48.52548217,169.17,169.16,0.06]
[1754508548379,6.82548217,169.17,169.16,0.06]
[1754508548590,48.50548217,169.17,169.16,0.06]
[1754508548988,69.52291131,169.17,169.16,0.06]
[1754508553590,21.23169774,169.17,169.16,0.06]
[1754508553892,62.93169774,169.17,169.16,0.06]
[1754508554213,15.10621557,169.17,169.16,0.06]
[1754508554396,41.7,169.17,169.16,0.06]
[1754508554589,47.82548217,169.17,169.16,0.06]
[1754508556788,62.93169774,169.17,169.16,0.06]
[1754508556999,15.10621557,169.13,169.1,0.1]
[1754508557299,6.12548217,169.11,169.1,0.1]
[1754508560510,21.90169774,169.11,169.1,0.1]
[1754508560685,27.8150086,169.11,169.1,0.1]
[1754508561295,0.67,169.14,169.1,0.1]
[1754508561494,6.12548217,169.13,169.11,0.67]
[1754508561711,47.86548217,169.12,169.11,0.67]
[1754508561891,41.74,169.12,169.11,0.67]
[1754508562219,47.86548217,169.12,169.11,0.67]
[1754508562393,47.86548217,169.12,169.1,0.1]
[1754508562594,47.86548217,169.12,169.1,0.77]
[1754508563015,6.12548217,169.11,169.1,0.77]
[1754508563190,41.74,169.12,169.1,0.77]
[1754508563395,41.74,169.12,169.1,6.68363804]
[1754508563709,10.0,169.07,169.01,0.459879]
[1754508563914,15.21637132,168.98,168.97,0.06]
[1754508564093,64.13169774,168.98,168.97,0.06]
[1754508565007,70.04955784,168.98,168.97,0.06]
[1754508565321,15.10621557,168.97,168.95,0.73]
[1754508565527,6.12548217,168.96,168.95,0.06]
[1754508565703,49.06548217,168.96,168.95,0.06]
[1754508566225,49.06548217,168.96,168.95,0.73]
[1754508566410,49.06548217,168.96,168.95,0.06]
[1754508567322,54.98404277,168.96,168.95,0.06]
[1754508572326,54.98404277,168.96,168.95,0.73]
[1754508573224,54.98404277,168.96,168.95,0.06]
[1754508574221,70.09025834,168.96,168.95,0.06]
[1754508574426,27.15025834,168.96,168.95,0.06]
[1754508574627,48.96548217,168.96,168.95,0.73]
[1754508574818,54.88404277,168.96,168.95,0.06]
[1754508575017,42.84,168.96,168.95,0.06]
[1754508575210,48.96548217,168.96,168.95,0.06]
[1754508575618,54.88404277,168.96,168.95,0.06]
[1754508575814,54.90404277,168.96,168.95,0.06]
[1754508576019,70.01025834,168.96,168.95,0.06]
[1754508581430,27.15025834,168.96,168.95,0.06]
[1754508581644,89.82477617,168.96,168.95,0.06]
[1754508581833,98.32280834,168.96,168.95,0.06]
[1754508582329,98.32280834,168.96,168.95,0.73]
[1754508582330,23.60424774,168.96,168.95,0.73]
[1754508582513,64.05169774,168.96,168.95,0.73]
[1754508583131,69.97025834,168.96,168.95,0.73]
[1754508583319,69.97025834,168.96,168.95,0.06]
[1754508584738,69.97025834,168.96,168.95,0.73]
[1754508587942,64.05169774,168.96,168.95,0.73]
[1754508588812,69.97025834,168.96,168.95,0.06]
[1754508590936,72.34308934,168.96,168.95,0.06]
[1754508593640,41.10621557,168.92,168.88,0.72]
[1754508593821,15.10621557,168.9,168.88,0.72]
[1754508594021,15.10621557,168.9,168.86,0.1]
[1754508594022,48.86548217,168.89,168.86,0.1]
[1754508594222,6.12548217,168.88,168.86,0.1]
[1754508594522,42.74,168.87,168.86,0.1]
[1754508595333,42.74,168.87,168.86,0.82]
[1754508595535,48.86548217,168.87,168.86,0.82]
[1754508596740,42.74,168.87,168.86,0.82]
[1754508597648,48.86548217,168.87,168.86,0.82]
[1754508600251,42.74,168.87,168.86,0.82]
[1754508600853,54.78719709,168.87,168.86,0.82]
[1754508601057,69.89341266,168.87,168.86,0.1]
[1754508602129,95.89341266,168.87,168.86,0.1]
[1754508603145,26.0,168.85,168.84,0.06]
[1754508603348,95.77411408,168.85,168.84,0.06]
[1754508603848,15.10621557,168.81,168.8,0.1]
[1754508604175,63.87169774,168.81,168.8,0.1]
[1754508605053,20.7284572,168.85,168.8,0.82]
[1754508605231,6.12548217,168.82,168.8,0.82]
[1754508605426,47.02863191,168.85,168.8,0.82]
[1754508605427,42.64,168.81,168.8,1.10432314]
[1754508606337,7.77163529,168.88,168.8,13.15397592]
[1754508606541,11.73862411,168.88,168.84,6.12548217]
[1754508606742,42.64,168.87,168.85,7.12980531]
[1754508606961,42.66,168.86,168.85,6.40980531]
[1754508607156,41.94,168.86,168.85,6.40980531]
[1754508607337,42.66,168.87,168.86,5.92206561]
[1754508607533,42.66,168.87,168.86,0.72]
[1754508607734,7.77163529,168.88,168.87,0.28432314]
[1754508607968,50.47163529,168.88,168.87,7.12980531]
[1754508608864,50.47163529,168.88,168.87,13.05152023]
[1754508610568,50.47163529,168.88,168.87,1.00432314]
[1754508611482,7.77163529,168.88,168.81,5.92381967]
[1754508611779,6.12548217,168.87,168.84,0.72]
[1754508611943,42.7,168.86,168.85,0.72]
[1754508612372,42.72,168.86,168.85,0.72]
[1754508613055,42.72,168.86,168.83,1.00432314]
[1754508613257,48.84548217,168.86,168.83,1.00432314]
[1754508613864,48.84548217,168.86,168.84,0.72]
[1754508615083,6.12548217,168.85,168.82,0.72]
[1754508615287,48.98548217,168.84,168.82,0.28432314]
[1754508615468,49.00548217,168.83,168.8,6.74405905]
[1754508615873,49.00548217,168.83,168.81,0.28432314]
[1754508616178,42.88,168.83,168.81,1.00432314]
[1754508617664,6.12548217,168.82,168.8,0.1]
[1754508617981,48.98548217,168.81,168.8,0.1]
[1754508618177,69.18056257,168.81,168.8,0.1]
[1754508618366,95.18056257,168.81,168.8,0.1]
[1754508619763,101.10438224,168.81,168.8,0.1]
[1754508619954,47.25886483,168.81,168.8,0.1]
[1754508620168,47.23886483,168.81,168.8,0.78]
[1754508620479,53.364347,168.81,168.8,0.1]
[1754508624466,69.18056257,168.81,168.8,0.1]
[1754508625376,75.10438224,168.81,168.8,0.1]
[1754508625872,74.39438224,168.81,168.8,0.1]
[1754508627592,75.10438224,168.81,168.8,0.1]
[1754508628687,74.39438224,168.81,168.8,0.1]
[1754508628895,68.39056257,168.81,168.8,0.1]
[1754508629102,25.65056257,168.81,168.8,0.1]
[1754508629471,68.39056257,168.81,168.8,0.1]
[1754508630605,68.39056257,168.81,168.78,0.08]
[1754508630606,15.10621557,168.79,168.78,0.08]
[1754508630780,15.10621557,168.75,168.67,5.92863298]
[1754508630989,6.12548217,168.7,168.66,0.06]
[1754508631185,48.98548217,168.69,168.67,0.68]
[1754508631415,42.86,168.69,168.67,0.96432314]
[1754508631602,42.86,168.69,168.67,0.68]
[1754508631807,42.86,168.69,168.68,0.68]
[1754508636392,42.86,168.69,168.68,6.6083851]
[1754508636632,42.86,168.69,168.68,6.89270824]
[1754508636797,6.21304,168.74,168.69,0.28432314]
[1754508636998,9.8538351,168.72,168.69,0.28432314]
[1754508637202,42.78,168.71,168.7,0.68]
[1754508638854,52.6338351,168.71,168.69,0.28432314]
[1754508639148,4.39122582,168.7,168.68,0.96432314]
[1754508639302,42.76,168.69,168.68,0.96432314]
[1754508639502,42.76,168.69,168.68,6.89270824]
[1754508639704,42.76,168.69,168.68,0.96432314]
[1754508641400,42.76,168.69,168.68,6.89270824]
[1754508641634,9.8538351,168.71,168.69,0.28432314]
[1754508641833,42.72,168.7,168.69,0.28432314]
[1754508644228,9.8538351,168.73,168.7,0.28432314]
[1754508644425,42.68,168.72,168.71,0.68]
[1754508645562,0.53,168.8,168.72,0.28432314]
[1754508645721,9.8538351,168.78,168.74,0.28432314]
[1754508645914,5.92381967,168.81,168.75,0.68]
[1754508645915,56.90496446,168.77,168.75,0.68]